bitfinex-derivatives/quotes_BTCF0:USTF0_20250810
["timestamp","ask_amount","ask_price","bid_price","bid_amount"]
[1754792617582,0.2037911,116820.0,116810.0,1.27502472]
[1754792617983,0.46545812,116820.0,116810.0,1.27502472]
[1754792618589,0.2037911,116820.0,116810.0,1.27502472]
[1754792618887,0.5645911,116820.0,116810.0,1.27502472]
[1754792619084,0.4463803,116820.0,116810.0,1.53669174]
[1754792619488,0.2799973,116830.0,116820.0,0.1637403]
[1754792619794,0.2796973,116830.0,116820.0,0.68707434]
[1754792620391,0.3377973,116830.0,116820.0,0.1637403]
[1754792620693,0.3387973,116830.0,116820.0,0.68707434]
[1754792620994,0.3773573,116830.0,116820.0,0.68707434]
[1754792621192,0.3773573,116830.0,116820.0,0.1637403]
[1754792621393,0.3773573,116830.0,116820.0,0.68707434]
[1754792622691,0.3773573,116830.0,116820.0,0.51214382]
[1754792624485,0.7381573,116830.0,116820.0,0.51214382]
[1754792624690,0.3773573,116830.0,116820.0,0.1637403]
[1754792624995,0.3773573,116830.0,116820.0,0.51214382]
[1754792625499,0.75618179,116830.0,116820.0,0.51214382]
[1754792628992,0.63755179,116830.0,116820.0,0.51214382]
[1754792629194,0.63755179,116830.0,116820.0,0.52939434]
[1754792629392,0.71862179,116830.0,116820.0,0.52939434]
[1754792629593,0.75618179,116830.0,116820.0,0.52939434]
[1754792630695,0.7381573,116830.0,116820.0,0.52939434]
[1754792631098,0.75619631,116830.0,116820.0,0.52939434]
[1754792631700,0.75619631,116830.0,116820.0,0.18099082]
[1754792631903,0.75619631,116830.0,116820.0,0.52939434]
[1754792632700,0.39539631,116830.0,116820.0,0.52939434]
[1754792632899,0.75619631,116830.0,116820.0,0.52939434]
[1754792635202,0.75619631,116830.0,116820.0,0.18099082]
[1754792635403,0.75619631,116830.0,116820.0,0.52939434]
[1754792637302,0.75619631,116830.0,116820.0,0.18099082]
[1754792637605,0.75619631,116830.0,116820.0,0.52939434]
[1754792637907,0.75619631,116830.0,116820.0,0.18099082]
[1754792638202,0.75619631,116830.0,116820.0,0.50602434]
[1754792638703,0.75619631,116830.0,116820.0,0.15762082]
[1754792639004,0.75619631,116830.0,116820.0,0.50602434]
[1754792639908,0.75619631,116830.0,116820.0,0.15762082]
[1754792640098,0.75619631,116830.0,116820.0,0.1403703]
[1754792641102,0.75619631,116830.0,116820.0,0.48877382]
[1754792643013,0.75619631,116830.0,116820.0,0.1403703]
[1754792644604,0.75619631,116830.0,116820.0,0.40169709]
[1754792644605,1.0175231,116830.0,116820.0,0.40169709]
[1754792645811,0.05445,116810.0,116790.0,0.21394716]
[1754792646006,0.2026549,116800.0,116790.0,0.15242699]
[1754792646208,0.2026549,116800.0,116790.0,0.15243049]
[1754792646405,0.48227667,116800.0,116790.0,1.05875049]
[1754792646603,0.0856022,116790.0,116780.0,0.2244003]
[1754792646804,0.2026622,116790.0,116780.0,0.20690893]
[1754792647112,0.2026622,116790.0,116780.0,1.11618893]
[1754792647306,0.21129822,116790.0,116780.0,1.11618893]
[1754792647604,0.21129822,116790.0,116780.0,1.11638893]
[1754792647809,0.21129822,116790.0,116780.0,0.96267]
[1754792648011,0.21129822,116790.0,116780.0,0.9855]
[1754792648509,0.21129822,116790.0,116780.0,1.50815358]
[1754792648708,0.21129822,116790.0,116780.0,1.33414635]
[1754792648909,0.21129822,116790.0,116780.0,0.40483635]
[1754792649110,0.21129822,116790.0,116780.0,1.31567635]
[1754792649811,0.21129822,116790.0,116780.0,0.96703]
[1754792650013,0.2026622,116790.0,116780.0,1.33850635]
[1754792650713,0.2026622,116790.0,116780.0,0.98986]
[1754792651213,0.2026622,116790.0,116780.0,1.33550635]
[1754792651402,0.2026622,116790.0,116780.0,1.33650635]
[1754792651808,0.2026622,116790.0,116780.0,0.98786]
[1754792652113,0.2026622,116790.0,116780.0,1.33650635]
[1754792652301,0.21114374,116790.0,116780.0,1.33650635]
[1754792652506,0.2026622,116790.0,116780.0,1.33650635]
[1754792653013,0.2026622,116790.0,116780.0,0.98786]
[1754792653207,0.2026622,116790.0,116780.0,1.33650635]
[1754792653914,0.2026622,116790.0,116780.0,0.99406]
[1754792654215,0.2026622,116790.0,116780.0,1.34270635]
[1754792654406,0.2026622,116790.0,116780.0,1.34354635]
[1754792654610,0.2026622,116790.0,116780.0,0.42666635]
[1754792654809,0.2026622,116790.0,116780.0,1.34370635]
[1754792655109,0.2026622,116790.0,116780.0,1.42931555]
[1754792657105,0.0856016,116790.0,116780.0,1.0806692]
[1754792657305,0.5169949,116800.0,116790.0,0.1616216]
[1754792657512,0.4311,116800.0,116790.0,0.51026795]
[1754792657706,0.6646387,116810.0,116790.0,0.59586955]
[1754792657908,0.1559924,116810.0,116800.0,1.38905065]
[1754792658110,0.1707724,116810.0,116800.0,1.0404043]
[1754792658309,0.2026524,116810.0,116800.0,1.38905065]
[1754792659519,0.11706,116810.0,116800.0,1.38905065]
[1754792660218,0.204647,116810.0,116800.0,1.38905065]
[1754792660625,0.11906,116810.0,116800.0,1.38905065]
[1754792661208,0.11906,116810.0,116800.0,1.0404043]
[1754792661421,0.204647,116810.0,116800.0,1.38905065]
[1754792661918,0.11906,116810.0,116800.0,1.38905065]
[1754792663018,0.2046471,116810.0,116800.0,1.38905065]
[1754792663322,0.02457,116810.0,116800.0,1.74985065]
[1754792663717,0.02457,116810.0,116800.0,2.098497]
[1754792663718,0.002,116810.0,116800.0,2.098497]
[1754792664119,0.002,116810.0,116800.0,1.74985065]
[1754792664523,0.02457,116810.0,116800.0,1.74985065]
[1754792665024,0.002,116810.0,116800.0,1.74985065]
[1754792665420,0.02457,116810.0,116800.0,1.74985065]
[1754792665621,0.08081,116810.0,116800.0,1.38905065]
[1754792665922,0.1663969,116810.0,116800.0,1.38905065]
[1754792666318,0.08081,116810.0,116800.0,1.38905065]
[1754792666515,0.11906,116810.0,116800.0,1.38905065]
[1754792666716,0.11806,116810.0,116800.0,1.38905065]
[1754792666916,0.11706,116810.0,116800.0,1.39005065]
[1754792668022,0.11706,116810.0,116800.0,1.39105065]
[1754792670718,0.11706,116810.0,116800.0,1.0424043]
[1754792671318,0.11706,116810.0,116800.0,1.75185065]
[1754792671726,0.11706,116810.0,116800.0,1.39105065]
[1754792671922,0.11706,116810.0,116800.0,1.75185065]
[1754792672728,0.03205,116810.0,116800.0,1.75185065]
[1754792673721,0.03205,116810.0,116800.0,1.4032043]
[1754792674022,0.03205,116810.0,116800.0,1.75185065]
[1754792675129,0.0945658,116820.0,116810.0,0.06121]
[1754792675328,0.1183158,116820.0,116810.0,0.07747]
[1754792675524,0.1275258,116820.0,116810.0,0.51170325]
[1754792675726,0.0086811,116820.0,116810.0,0.51170325]
[1754792675931,0.02405,116820.0,116810.0,0.51170325]
[1754792676232,0.04191503,116820.0,116810.0,0.51170325]
[1754792676531,0.04191503,116820.0,116810.0,0.87250325]
[1754792677322,0.05685503,116820.0,116810.0,0.51170325]
[1754792677525,0.05685503,116820.0,116810.0,0.87250325]
[1754792678636,0.14243483,116820.0,116810.0,0.51170325]
[1754792678934,0.05685503,116820.0,116810.0,0.52912011]
[1754792680133,0.04191503,116820.0,116810.0,0.52912011]
[1754792680931,0.04191503,116820.0,116810.0,0.88992011]
[1754792681836,0.04191503,116820.0,116810.0,0.52912011]
[1754792682336,0.04191503,116820.0,116810.0,0.18047376]
[1754792682532,0.06606503,116820.0,116810.0,0.52912011]
[1754792684032,0.09824503,116820.0,116810.0,0.52912011]
[1754792684731,0.05112503,116820.0,116810.0,0.52912011]
[1754792684927,0.01786503,116820.0,116810.0,0.88992011]
[1754792686030,0.03356,116830.0,116810.0,1.02145911]
[1754792686330,0.13545391,116830.0,116820.0,1.36625595]
[1754792686532,0.13535391,116830.0,116820.0,1.36625595]
[1754792687232,0.13635391,116830.0,116820.0,1.72705595]
[1754792687637,0.13735391,116830.0,116820.0,1.72705595]
[1754792688030,0.13735391,116830.0,116820.0,1.36625595]
[1754792688338,0.22292621,116830.0,116820.0,1.36625595]
[1754792690729,0.22314805,116830.0,116820.0,1.36625595]
[1754792691336,0.22314805,116830.0,116820.0,1.0176096]
[1754792691538,0.22314805,116830.0,116820.0,1.36625595]
[1754792695335,0.22314805,116830.0,116820.0,1.0176096]
[1754792695637,0.22314805,116830.0,116820.0,1.36625595]
[1754792697837,0.02010575,116830.0,116820.0,1.36625595]
[1754792698338,0.02010575,116830.0,116820.0,1.72705595]
[1754792698537,0.04415575,116830.0,116820.0,1.72705595]
[1754792698742,0.04415575,116830.0,116820.0,1.90095812]
[1754792699043,0.04315575,116830.0,116820.0,1.90095812]
[1754792699244,0.04215575,116830.0,116820.0,1.90195812]
[1754792699546,0.02405,116830.0,116820.0,1.90195812]
[1754792700047,0.02405,116830.0,116820.0,1.90295812]
[1754792700746,0.02405,116830.0,116820.0,1.72878203]
[1754792702444,0.02405,116830.0,116820.0,1.36798203]
[1754792702748,0.02405,116830.0,116820.0,1.72878203]
[1754792705250,0.02405,116830.0,116820.0,1.3804096]
[1754792705548,0.02405,116830.0,116820.0,1.36798203]
[1754792706448,0.03326,116830.0,116820.0,1.36798203]
[1754792706640,0.04748,116830.0,116820.0,1.36798203]
[1754792707550,0.04748,116830.0,116820.0,1.0196096]
[1754792707748,0.04748,116830.0,116820.0,1.36798203]
[1754792709052,0.04748,116830.0,116820.0,1.72878203]
[1754792710748,0.04748,116830.0,116820.0,1.36798203]
[1754792710950,0.04748,116830.0,116820.0,1.72878203]
[1754792711955,0.03326,116830.0,116820.0,1.72878203]
[1754792712356,0.05202983,116830.0,116820.0,1.36798203]
[1754792712556,0.05202983,116830.0,116820.0,1.0196096]
[1754792712758,0.05202983,116830.0,116820.0,1.36798203]
[1754792713055,0.05202983,116830.0,116820.0,1.72878203]
[1754792713757,0.05203032,116830.0,116820.0,1.72878203]
[1754792714064,0.05203038,116830.0,116820.0,1.36798203]
[1754792714261,0.03326,116830.0,116820.0,1.72878203]
[1754792715155,0.02405,116830.0,116820.0,1.72878203]
[1754792716268,0.04282079,116830.0,116820.0,1.72878203]
[1754792716768,0.04282079,116830.0,116820.0,1.0196096]
[1754792717067,0.04282079,116830.0,116820.0,1.36798203]
[1754792717259,0.04282079,116830.0,116820.0,1.72878203]
[1754792717865,0.04282079,116830.0,116820.0,1.36798203]
[1754792718269,0.04282079,116830.0,116820.0,1.0196096]
[1754792718469,0.04282079,116830.0,116820.0,1.36798203]
[1754792719469,0.04282079,116830.0,116820.0,1.72878203]
[1754792719669,0.04282079,116830.0,116820.0,1.36798203]
[1754792719871,0.01877079,116830.0,116820.0,1.72878203]
[1754792720669,0.01877079,116830.0,116820.0,1.90288384]
[1754792723473,0.01877079,116830.0,116820.0,2.17188384]
[1754792726068,0.08065,116840.0,116830.0,0.07748]
[1754792726268,0.09913308,116840.0,116830.0,0.42428982]
[1754792728670,0.09913308,116840.0,116830.0,0.1630527]
[1754792728873,0.09913308,116840.0,116830.0,0.42428982]
[1754792729275,0.09913308,116840.0,116830.0,0.49276537]
[1754792731379,0.13665308,116840.0,116830.0,0.49276537]
[1754792734381,0.22221848,116840.0,116830.0,0.49276537]
[1754792734983,0.13665308,116840.0,116830.0,0.23152825]
[1754792735280,0.13665308,116840.0,116830.0,0.49276537]
[1754792736177,0.13665308,116840.0,116830.0,0.23152825]
[1754792736377,0.13665308,116840.0,116830.0,0.49276537]
[1754792739884,0.13665308,116840.0,116830.0,0.23152825]
[1754792740074,0.13665308,116840.0,116830.0,0.49276537]
[1754792740686,0.22221848,116840.0,116830.0,0.23152825]
[1754792740985,0.22221848,116840.0,116830.0,0.49276537]
[1754792741387,0.13665308,116840.0,116830.0,0.23152825]
[1754792741683,0.13665308,116840.0,116830.0,0.49276537]
[1754792741885,0.22221848,116840.0,116830.0,0.49276537]
[1754792747291,1.53814384,116840.0,116820.0,0.0001]
[1754792747487,0.2020375,116810.0,116800.0,0.05448]
[1754792747684,0.13546112,116810.0,116800.0,0.05448]
[1754792747882,0.22104862,116810.0,116800.0,0.05448]
[1754792748188,0.22104862,116810.0,116800.0,0.57695424]
[1754792748189,0.2020375,116810.0,116800.0,0.57695424]
[1754792748384,0.2020375,116810.0,116800.0,0.05448]
[1754792748588,0.11645,116810.0,116800.0,0.66254804]
[1754792748791,0.2020365,116810.0,116800.0,0.42632223]
[1754792748984,0.2020365,116810.0,116800.0,0.07785]
[1754792749191,0.11645,116810.0,116800.0,0.51191593]
[1754792749493,0.2020364,116810.0,116800.0,0.1634437]
[1754792749698,0.2020364,116810.0,116800.0,0.51191593]
[1754792749883,0.2020364,116810.0,116800.0,0.51591593]
[1754792750590,0.2020364,116810.0,116800.0,0.51191593]
[1754792750987,0.2020364,116810.0,116800.0,0.1634437]
[1754792751195,0.2020364,116810.0,116800.0,0.07785]
[1754792751584,0.2020364,116810.0,116800.0,0.42632223]
[1754792751989,0.2020364,116810.0,116800.0,0.07785]
[1754792752195,0.2020364,116810.0,116800.0,0.42632223]
[1754792752694,0.2020364,116810.0,116800.0,0.51191573]
[1754792753085,0.2020364,116810.0,116800.0,0.55801841]
[1754792753287,0.2020364,116810.0,116800.0,0.20954618]
[1754792753689,0.2020364,116810.0,116800.0,0.55801841]
[1754792754182,0.2020364,116810.0,116800.0,0.20954618]
[1754792754386,0.2020364,116810.0,116800.0,0.55801841]
[1754792754594,0.2020364,116810.0,116800.0,1.50817841]
[1754792755091,0.2020364,116810.0,116800.0,1.50777841]
[1754792756195,0.2020364,116810.0,116800.0,1.46167573]
[1754792756387,0.2020364,116810.0,116800.0,1.1132035]
[1754792756587,0.2020364,116810.0,116800.0,1.46167573]
[1754792757190,0.02412,116820.0,116810.0,0.07785]
[1754792757392,0.2023241,116830.0,116820.0,0.1634288]
[1754792757589,0.04954862,116830.0,116820.0,1.1112688]
[1754792757794,0.06367862,116830.0,116820.0,1.45974103]
[1754792758095,0.04954862,116830.0,116820.0,1.45974103]
[1754792758301,0.03302,116830.0,116820.0,1.82054103]
[1754792758598,0.04715,116830.0,116820.0,1.45974103]
[1754792758786,0.07902,116830.0,116820.0,1.1112688]
[1754792758990,0.07902,116830.0,116820.0,1.82054103]
[1754792759193,0.07902,116830.0,116820.0,1.86664371]
[1754792759899,0.07902,116830.0,116820.0,1.86764371]
[1754792760196,0.2878902,116840.0,116830.0,0.1634215]
[1754792760499,0.21858337,116840.0,116830.0,0.51189373]
[1754792762102,0.21858337,116840.0,116830.0,0.57878113]
[1754792762301,0.21858337,116840.0,116830.0,0.2303089]
[1754792762601,0.21858337,116840.0,116830.0,0.57878113]
[1754792765493,0.21858337,116840.0,116830.0,0.2303089]
[1754792765697,0.21858337,116840.0,116830.0,0.57878113]
[1754792765897,0.21858337,116840.0,116830.0,0.2303089]
[1754792766097,0.21858337,116840.0,116830.0,0.57878113]
[1754792766296,0.2020192,116840.0,116830.0,0.57878113]
[1754792769212,0.2020192,116840.0,116830.0,0.2303089]
[1754792769501,0.2020192,116840.0,116830.0,0.57878113]
[1754792769702,0.11645,116840.0,116830.0,0.57878113]
[1754792771496,0.11645,116840.0,116830.0,0.2303089]
[1754792771698,0.11645,116840.0,116830.0,0.57878113]
[1754792773406,0.2020147,116840.0,116830.0,0.2303089]
[1754792773703,0.2020147,116840.0,116830.0,0.57878113]
[1754792776607,0.2020147,116840.0,116830.0,0.2303089]
[1754792776801,0.2020147,116840.0,116830.0,0.57878113]
[1754792779603,0.2020147,116840.0,116830.0,0.2303089]
[1754792779806,0.2020147,116840.0,116830.0,0.57878113]
[1754792780203,0.11645,116840.0,116830.0,0.57878113]
[1754792780411,0.11645,116840.0,116830.0,0.93958113]
[1754792780609,0.11645,116840.0,116830.0,0.57878113]
[1754792781307,0.2020147,116840.0,116830.0,0.57878113]
[1754792781509,0.2020147,116840.0,116830.0,0.62488381]
[1754792782499,0.2020147,116840.0,116830.0,0.27641158]
[1754792782911,0.2020147,116840.0,116830.0,0.53766572]
[1754792784112,0.2020147,116840.0,116830.0,0.27641158]
[1754792784306,0.2020147,116840.0,116830.0,0.53766572]
[1754792785106,0.2020147,116840.0,116830.0,0.27641158]
[1754792785412,0.46326884,116840.0,116830.0,0.53766572]
[1754792786308,0.21889415,116840.0,116830.0,0.53766572]
[1754792786508,0.48014829,116840.0,116830.0,0.53766572]
[1754792787106,0.21889415,116840.0,116830.0,0.53766572]
[1754792787307,0.13332945,116840.0,116830.0,0.53766572]
[1754792787813,0.04989945,116840.0,116830.0,0.79891986]
[1754792788009,0.04069945,116840.0,116830.0,1.15971986]
[1754792788618,0.04069945,116840.0,116830.0,0.98549152]
[1754792789210,0.04071015,116840.0,116830.0,0.98549152]
[1754792789910,0.04071015,116840.0,116830.0,0.93938884]
[1754792790111,0.04071015,116840.0,116830.0,0.5911089]
[1754792790307,0.04071015,116840.0,116830.0,0.98552282]
[1754792790513,0.06567015,116840.0,116830.0,0.93938884]
[1754792793016,0.05069015,116840.0,116830.0,0.93938884]
[1754792794020,0.0338,116840.0,116830.0,0.93938884]
[1754792797321,0.13565374,116840.0,116830.0,0.0827674]
[1754792797628,0.5650348,116840.0,116830.0,0.0668874]
[1754792797814,0.1225721,116830.0,116820.0,0.5793364]
[1754792798122,0.5629221,116830.0,116820.0,0.5167976]
[1754792798316,0.91120204,116830.0,116820.0,0.4936576]
[1754792798821,0.2021221,116830.0,116820.0,0.4080788]
[1754792799017,0.55040204,116830.0,116820.0,0.4080788]
[1754792799217,0.55040204,116830.0,116820.0,0.3235]
[1754792799427,0.91120204,116830.0,116820.0,0.28558]
[1754792799617,0.92870022,116830.0,116820.0,1.24212]
[1754792799815,0.58042028,116830.0,116820.0,1.24212]
[1754792800018,0.92870022,116830.0,116820.0,1.25938]
[1754792800718,0.58042028,116830.0,116820.0,1.25838]
[1754792802523,0.21962028,116830.0,116820.0,1.25738]
[1754792802718,0.58042028,116830.0,116820.0,1.25738]
[1754792803017,0.92870022,116830.0,116820.0,1.25738]
[1754792803225,0.58042028,116830.0,116820.0,1.25738]
[1754792803425,0.58042028,116830.0,116820.0,0.0535]
[1754792803617,0.92870022,116830.0,116820.0,1.02422]
[1754792803823,0.56790022,116830.0,116820.0,1.02422]
[1754792805526,0.21962028,116830.0,116820.0,1.02422]
[1754792805831,0.56790022,116830.0,116820.0,1.04736]
[1754792806926,0.56790022,116830.0,116820.0,0.07664]
[1754792807123,0.56790022,116830.0,116820.0,1.04392]
[1754792808728,0.56790022,116830.0,116820.0,1.126339]
[1754792808929,0.21962028,116830.0,116820.0,1.126339]
[1754792811128,0.21962028,116830.0,116820.0,1.47461894]
[1754792811323,0.21962028,116830.0,116820.0,1.126339]
[1754792811722,0.202129,116820.0,116810.0,0.0536]
[1754792812034,0.58134002,116820.0,116810.0,1.03254]
[1754792812324,0.58134002,116820.0,116810.0,1.06042]
[1754792812325,0.92961996,116820.0,116810.0,1.06042]
[1754792812527,0.92961996,116820.0,116810.0,1.08356]
[1754792812920,0.58134002,116820.0,116810.0,1.08356]
[1754792813120,0.58134002,116820.0,116810.0,1.08456]
[1754792813322,0.53479002,116820.0,116810.0,1.08872]
[1754792813518,0.58134002,116820.0,116810.0,1.1743058]
[1754792813721,0.92961996,116820.0,116810.0,1.1743058]
[1754792814130,0.58134002,116820.0,116810.0,1.1743058]
[1754792814318,0.58134002,116820.0,116810.0,1.08872]
[1754792814927,0.92961996,116820.0,116810.0,1.08772]
[1754792815127,0.58134002,116820.0,116810.0,1.08772]
[1754792815525,0.92961996,116820.0,116810.0,1.08672]
[1754792816231,0.91120894,116820.0,116810.0,1.08672]
[1754792816618,0.562929,116820.0,116810.0,1.1723058]
[1754792817132,0.91120894,116820.0,116810.0,1.1723058]
[1754792817327,0.562929,116820.0,116810.0,1.1723058]
[1754792817724,0.37919234,116820.0,116810.0,1.1723058]
[1754792817926,0.2194398,116830.0,116820.0,0.1622183]
[1754792818127,0.2561398,116830.0,116820.0,0.51049824]
[1754792818532,0.2876998,116830.0,116820.0,0.51049824]
[1754792818725,0.2021221,116830.0,116820.0,0.1622183]
[1754792819033,0.2041221,116830.0,116820.0,0.1622183]
[1754792819332,0.2041221,116830.0,116820.0,0.07664]
[1754792819732,0.55140204,116830.0,116820.0,0.07664]
[1754792820231,0.91220204,116830.0,116820.0,0.07664]
[1754792820629,0.5639221,116830.0,116820.0,0.07664]
[1754792821125,0.91220204,116830.0,116820.0,0.07664]
[1754792822032,0.5639221,116830.0,116820.0,0.07664]
[1754792822234,0.91220204,116830.0,116820.0,0.07664]
[1754792823331,0.91120204,116830.0,116820.0,0.07664]
[1754792825133,0.5629221,116830.0,116820.0,0.07664]
[1754792825333,0.91120204,116830.0,116820.0,0.07664]
[1754792825539,0.5629221,116830.0,116820.0,0.1622181]
[1754792826135,0.91120204,116830.0,116820.0,0.1622181]
[1754792826434,0.91120204,116830.0,116820.0,0.07664]
[1754792826734,0.5629221,116830.0,116820.0,0.1622181]
[1754792826930,0.91120204,116830.0,116820.0,0.1622181]
[1754792827130,0.5629221,116830.0,116820.0,0.1622181]
[1754792827329,0.91120204,116830.0,116820.0,0.1622181]
[1754792827635,0.5629221,116830.0,116820.0,0.1622181]
[1754792828326,0.92982945,116830.0,116820.0,0.1622181]
[1754792828727,0.92982945,116830.0,116820.0,0.07664]
[1754792829123,0.58154951,116830.0,116820.0,0.0535]
[1754792829437,0.58154951,116830.0,116820.0,0.1390776]
[1754792829734,0.92982945,116830.0,116820.0,0.1390776]
[1754792830834,0.92982945,116830.0,116820.0,0.0535]
[1754792831228,0.58154951,116830.0,116820.0,0.0535]
[1754792831631,0.92982945,116830.0,116820.0,0.0535]
[1754792832238,0.58154951,116830.0,116820.0,0.1390776]
[1754792832433,0.92982945,116830.0,116820.0,0.1390776]
[1754792833337,0.58154951,116830.0,116820.0,0.1390776]
[1754792833537,0.13517741,116830.0,116820.0,0.84802754]
[1754792833739,0.13517741,116830.0,116820.0,0.87065754]
[1754792835427,0.11655,116830.0,116820.0,0.87065754]
[1754792836036,0.07,116830.0,116820.0,0.87065754]
[1754792836338,0.11744,116830.0,116820.0,0.87065754]
[1754792836543,0.11744,116830.0,116820.0,0.5223776]
[1754792836840,0.2030102,116830.0,116820.0,0.5223776]
[1754792838847,0.55129014,116830.0,116820.0,0.4997476]
[1754792839541,0.55129014,116830.0,116820.0,0.5007476]
[1754792840036,0.2030102,116830.0,116820.0,0.5007476]
[1754792840843,0.2030102,116830.0,116820.0,0.5233776]
[1754792841645,0.55129014,116830.0,116820.0,0.5233776]
[1754792841943,0.55129014,116830.0,116820.0,1.5422976]
[1754792842147,0.2030102,116830.0,116820.0,1.5422976]
[1754792842340,0.55129014,116830.0,116820.0,0.5233776]
[1754792842541,0.55129014,116830.0,116820.0,1.5422976]
[1754792843048,0.2030102,116830.0,116820.0,1.5422976]
[1754792843450,0.2030102,116830.0,116820.0,1.5432976]
[1754792843848,0.11744,116830.0,116820.0,1.5420976]
[1754792845446,0.11744,116830.0,116820.0,0.5243776]
[1754792845644,0.2030103,116830.0,116820.0,1.5399776]
[1754792845844,0.55129024,116830.0,116820.0,1.5399776]
[1754792846050,0.55129024,116830.0,116820.0,1.1791776]
[1754792846345,0.57030184,116830.0,116820.0,1.1791776]
[1754792846754,0.2220219,116830.0,116820.0,1.1781776]
[1754792847351,0.57030184,116830.0,116820.0,1.1781776]
[1754792847551,0.48473154,116830.0,116820.0,1.1781776]
[1754792847853,0.1364516,116830.0,116820.0,1.1781776]
[1754792848045,0.48473154,116830.0,116820.0,1.1781776]
[1754792848246,0.48473154,116830.0,116820.0,1.52545754]
[1754792848541,0.0285816,116830.0,116820.0,1.52545754]
[1754792848741,0.0420416,116830.0,116820.0,1.52545754]
[1754792849457,0.0514716,116830.0,116820.0,1.52545754]
[1754792849646,0.1360816,116830.0,116820.0,1.52545754]
[1754792850351,0.0190116,116830.0,116820.0,1.5379776]
[1754792850548,0.0190116,116830.0,116820.0,1.88625754]
[1754792851056,0.0190116,116830.0,116820.0,1.88825754]
[1754792851455,0.0190116,116830.0,116820.0,1.5399776]
[1754792851655,0.0190116,116830.0,116820.0,1.88825754]
[1754792852057,0.0190116,116830.0,116820.0,1.5399776]
[1754792852256,0.0190116,116830.0,116820.0,1.88825754]
[1754792852555,0.0989116,116830.0,116820.0,1.5399776]
[1754792852748,0.0989116,116830.0,116820.0,1.88825754]
[1754792852948,0.0989116,116830.0,116820.0,1.52745754]
[1754792853145,0.0989116,116830.0,116820.0,1.5399776]
[1754792853348,0.0989116,116830.0,116820.0,1.88825754]
[1754792853555,0.0989116,116830.0,116820.0,1.5399776]
[1754792853748,0.0989116,116830.0,116820.0,2.15725754]
[1754792855359,0.0190116,116830.0,116820.0,2.15725754]
[1754792855750,0.0190116,116830.0,116820.0,1.8089776]
[1754792855948,0.0425616,116830.0,116820.0,1.8089776]
[1754792856156,0.0425616,116830.0,116820.0,2.15725754]
[1754792856356,0.02355,116830.0,116820.0,2.15725754]
[1754792857148,0.02355,116830.0,116820.0,1.8089776]
[1754792857357,0.02355,116830.0,116820.0,1.4481776]
[1754792857759,0.02355,116830.0,116820.0,1.79645754]
[1754792858662,0.02355,116830.0,116820.0,2.15725754]
[1754792859470,0.02355,116830.0,116820.0,1.4481776]
[1754792859664,0.02355,116830.0,116820.0,1.79645754]
[1754792859853,0.02355,116830.0,116820.0,1.4481776]
[1754792860053,0.02355,116830.0,116820.0,1.79645754]
[1754792860660,0.03333,116830.0,116820.0,2.15725754]
[1754792860962,0.08121,116830.0,116820.0,1.8089776]
[1754792861353,0.08121,116830.0,116820.0,2.15725754]
[1754792864155,0.11897,116830.0,116820.0,0.7933776]
[1754792864361,0.46724994,116830.0,116820.0,1.8062576]
[1754792864751,0.11897,116830.0,116820.0,2.15453754]
[1754792865154,0.03333,116830.0,116820.0,2.15453754]
[1754792865359,0.02355,116830.0,116820.0,2.15453754]
[1754792865756,0.02355,116830.0,116820.0,1.8062576]
[1754792865956,0.02355,116830.0,116820.0,2.15453754]
[1754792866357,0.02355,116830.0,116820.0,1.8062576]
[1754792866558,0.02355,116830.0,116820.0,2.15453754]
[1754792866757,0.02355,116830.0,116820.0,1.8062576]
[1754792867361,0.04725,116830.0,116820.0,1.8062576]
[1754792868658,0.08121,116830.0,116820.0,1.8062576]
[1754792868858,0.11897,116830.0,116820.0,1.8062576]
[1754792873163,0.11897,116830.0,116820.0,1.7986976]
[1754792873567,0.08501,116830.0,116820.0,1.7986976]
[1754792874155,0.08501,116830.0,116820.0,0.7933776]
[1754792874359,0.11897,116830.0,116820.0,1.7945776]
[1754792874555,0.46724994,116830.0,116820.0,1.7945776]
[1754792875066,0.11897,116830.0,116820.0,1.7945776]
[1754792875865,0.11897,116830.0,116820.0,0.7933776]
[1754792876063,0.03333,116830.0,116820.0,1.7718676]
[1754792876263,0.03333,116830.0,116820.0,1.9662882]
[1754792876264,0.11897,116830.0,116820.0,1.9662882]
[1754792876565,0.11897,116830.0,116820.0,1.9651282]
[1754792879165,0.46724994,116830.0,116820.0,1.9651282]
[1754792879358,0.11897,116830.0,116820.0,1.9651282]
[1754792880270,0.08501,116830.0,116820.0,1.9651282]
[1754792880872,0.03333,116830.0,116820.0,1.9651282]
[1754792881072,0.03333,116830.0,116820.0,2.31340814]
[1754792881274,0.03333,116830.0,116820.0,1.9651282]
[1754792883477,0.7367713,116840.0,116830.0,0.1018302]
[1754792883668,1.1037236,116840.0,116830.0,0.1414002]
[1754792885569,1.1037236,116840.0,116830.0,1.1380002]
[1754792886573,0.66987466,116840.0,116830.0,1.1380002]
[1754792886774,1.0181546,116840.0,116830.0,1.1380002]
[1754792888572,1.0181546,116840.0,116830.0,1.1613702]
[1754792888771,1.0181546,116840.0,116830.0,1.1340802]
[1754792888973,0.1675602,116830.0,116820.0,0.2691]
[1754792889273,0.1675602,116830.0,116810.0,0.4205605]
[1754792889274,0.2049875,116820.0,116810.0,0.4205605]
[1754792889471,0.55326744,116820.0,116810.0,1.4105405]
[1754792889677,0.55326744,116820.0,116810.0,1.4095405]
[1754792889978,0.55326744,116820.0,116810.0,0.4204605]
[1754792890178,0.55326744,116820.0,116810.0,1.4088605]
[1754792891476,0.55326744,116820.0,116810.0,0.4204605]
[1754792891674,0.55326744,116820.0,116810.0,1.4081405]
[1754792892180,0.55326744,116820.0,116810.0,1.4131405]
[1754792892578,0.2049875,116820.0,116810.0,1.4131405]
[1754792892784,0.55326744,116820.0,116810.0,1.4131405]
[1754792893082,0.2049875,116820.0,116810.0,1.4131405]
[1754792893383,0.55326744,116820.0,116810.0,1.4131405]
[1754792894072,0.46768994,116820.0,116810.0,1.4131405]
[1754792894883,0.11941,116820.0,116810.0,1.4131405]
[1754792895078,0.2200066,116830.0,116820.0,0.1240776]
[1754792895284,0.22393239,116830.0,116820.0,0.1637076]
[1754792895582,0.57221233,116830.0,116820.0,1.1520676]
[1754792896177,0.57221233,116830.0,116820.0,1.1530676]
[1754792896684,0.22393239,116830.0,116820.0,1.1530676]
[1754792896880,0.57221233,116830.0,116820.0,1.1540676]
[1754792897792,0.57221233,116830.0,116820.0,0.1657076]
[1754792898085,0.57221233,116830.0,116820.0,1.1503476]
[1754792898789,0.22393239,116830.0,116820.0,1.1503476]
[1754792898990,0.57221233,116830.0,116820.0,1.1503476]
[1754792899488,0.22393239,116830.0,116820.0,1.1503476]
[1754792899682,0.57221233,116830.0,116820.0,1.1503476]
[1754792900187,0.22393239,116830.0,116820.0,1.1503476]
[1754792900487,0.57221233,116830.0,116820.0,1.1503476]
[1754792902089,0.93301233,116830.0,116820.0,1.1503476]